bitfinex-derivatives/quotes_BTCF0:USTF0_20251110
["timestamp","ask_amount","ask_price","bid_price","bid_amount"]
[1762733875741,0.68060452,105160.0,105150.0,1.15191433]
[1762733875941,0.55204452,105160.0,105150.0,1.15191433]
[1762733876246,0.12479452,105160.0,105150.0,1.15191433]
[1762733876434,0.00419803,105160.0,105150.0,1.15191433]
[1762733876632,0.003,105160.0,105150.0,1.15191433]
[1762733876837,0.57036803,105160.0,105150.0,0.99861611]
[1762733877032,0.56936803,105160.0,105150.0,0.58172963]
[1762733877237,0.56736803,105160.0,105150.0,0.58172963]
[1762733877438,0.56736803,105160.0,105150.0,0.58272963]
[1762733877740,0.56736803,105160.0,105150.0,0.37773963]
[1762733877941,0.56736803,105160.0,105150.0,1.04255423]
[1762733878238,0.56736803,105160.0,105150.0,1.16249423]
[1762733878440,0.56736803,105160.0,105150.0,0.58662963]
[1762733878943,0.92816803,105160.0,105150.0,0.15436963]
[1762733879249,1.04776452,105160.0,105150.0,0.15436963]
[1762733879544,1.04776452,105160.0,105150.0,0.00107141]
[1762733879746,0.43524,105150.0,105140.0,0.24843192]
[1762733879949,0.96858462,105150.0,105140.0,0.15329822]
[1762733880548,0.96858462,105150.0,105140.0,0.02473539]
[1762733880745,0.96858462,105150.0,105140.0,0.00926024]
[1762733881541,0.79823803,105150.0,105140.0,0.00926024]
[1762733881741,0.79823803,105150.0,105140.0,0.01026024]
[1762733882049,0.79823803,105150.0,105140.0,0.53765394]
[1762733882348,0.92816803,105150.0,105140.0,0.44252024]
[1762733882550,0.92816803,105150.0,105140.0,0.53765394]
[1762733882946,0.56736803,105150.0,105140.0,0.53765394]
[1762733883253,0.68699936,105150.0,105140.0,0.89845394]
[1762733883646,0.68699936,105150.0,105140.0,0.37106024]
[1762733883860,0.68699936,105150.0,105140.0,0.01026024]
[1762733883861,1.04779936,105150.0,105140.0,0.01026024]
[1762733884148,1.09851462,105150.0,105140.0,0.01026024]
[1762733885040,1.19363932,105150.0,105140.0,0.01026024]
[1762733885647,1.02329273,105150.0,105140.0,0.01026024]
[1762733885951,1.2451072,105150.0,105140.0,0.01026024]
[1762733886753,1.1499825,105150.0,105140.0,0.01026024]
[1762733886956,1.09911299,105150.0,105140.0,0.20075184]
[1762733887256,0.85796246,105150.0,105140.0,0.79406]
[1762733887460,1.21876246,105150.0,105140.0,0.10561814]
[1762733887652,1.0478175,105150.0,105140.0,0.20075184]
[1762733887851,1.0478175,105150.0,105140.0,0.10561814]
[1762733888052,1.0478175,105150.0,105140.0,0.20075184]
[1762733888357,1.0478175,105150.0,105140.0,0.10561814]
[1762733888756,1.0478175,105150.0,105140.0,0.001]
[1762733888757,1.1429421,105150.0,105140.0,0.001]
[1762733888953,1.02329263,105150.0,105140.0,0.10561814]
[1762733889459,0.92816803,105150.0,105140.0,0.20075184]
[1762733889961,0.68701585,105150.0,105140.0,0.20075184]
[1762733890461,1.04781585,105150.0,105140.0,0.20075184]
[1762733890653,1.04781585,105150.0,105140.0,0.0951337]
[1762733890854,1.04781585,105150.0,105140.0,0.19975184]
[1762733891263,1.04781585,105150.0,105140.0,0.10461814]
[1762733891562,1.14294045,105150.0,105140.0,0.10461814]
[1762733891858,0.70770045,105150.0,105140.0,0.10461814]
[1762733892059,0.6309837,105140.0,105130.0,0.00014277]
[1762733892254,1.11362705,105140.0,105130.0,0.00014277]
[1762733892657,1.01849335,105140.0,105130.0,0.00014277]
[1762733892857,1.01849335,105140.0,105130.0,0.09528557]
[1762733893060,0.89884803,105140.0,105130.0,0.09628557]
[1762733893268,0.89984803,105140.0,105130.0,0.42157371]
[1762733893464,0.89984803,105140.0,105130.0,0.63616371]
[1762733893660,0.55803491,105140.0,105130.0,1.10306371]
[1762733893860,0.55803491,105140.0,105130.0,0.90216]
[1762733894062,0.55803491,105140.0,105130.0,1.10192094]
[1762733894257,0.55802503,105140.0,105130.0,1.10192094]
[1762733895967,0.120587,105140.0,105130.0,1.10192094]
[1762733896165,0.56531277,105160.0,105150.0,0.6473247]
[1762733896468,0.5675108,105160.0,105150.0,1.11274284]
[1762733896870,0.5675108,105160.0,105150.0,0.75194284]
[1762733897061,0.5675108,105160.0,105150.0,1.11274284]
[1762733897369,0.5695108,105160.0,105150.0,1.11374284]
[1762733897568,0.5695108,105160.0,105150.0,1.01861814]
[1762733897770,0.5695108,105160.0,105150.0,0.65781814]
[1762733898067,0.5695108,105160.0,105150.0,1.11374274]
[1762733898468,0.5695108,105160.0,105150.0,1.01861814]
[1762733898669,0.5705108,105160.0,105150.0,1.11374274]
[1762733900676,0.5705108,105160.0,105150.0,1.09827019]
[1762733901670,0.4405808,105160.0,105150.0,1.09827019]
[1762733901871,0.00314277,105160.0,105150.0,1.20288833]
[1762733902175,0.00314277,105160.0,105150.0,1.09827019]
[1762733902366,0.00314277,105160.0,105150.0,1.20288833]
[1762733902563,1.14778447,105180.0,105170.0,0.6473065]
[1762733902776,0.79823803,105180.0,105170.0,0.73026471]
[1762733902968,0.43743803,105180.0,105170.0,0.73026471]
[1762733903572,0.91894803,105180.0,105170.0,0.65781814]
[1762733903772,0.92294803,105180.0,105170.0,0.53787814]
[1762733905168,0.91894803,105180.0,105170.0,0.53787814]
[1762733905373,1.01404553,105180.0,105170.0,0.001]
[1762733905572,0.56417,105170.0,105160.0,0.00014277]
[1762733905783,1.04667885,105170.0,105160.0,0.00014277]
[1762733906075,1.02227463,105170.0,105160.0,6.57e-05]
[1762733906279,1.02227463,105170.0,105130.0,0.62119074]
[1762733906280,0.12232,105150.0,105130.0,0.62119074]
[1762733906475,0.97275392,105140.0,105130.0,0.62119074]
[1762733906778,0.88736803,105140.0,105130.0,0.62119094]
[1762733906970,0.52656803,105140.0,105130.0,0.62119094]
[1762733907166,0.49413884,105140.0,105130.0,1.10146094]
[1762733907466,0.49413884,105140.0,105130.0,0.74066094]
[1762733907868,0.49413884,105140.0,105130.0,1.10146094]
[1762733908069,0.28935884,105140.0,105130.0,1.10146094]
[1762733908378,0.08758884,105140.0,105130.0,1.10446094]
[1762733908780,0.08758884,105140.0,105130.0,1.10346094]
[1762733909076,0.08639081,105140.0,105130.0,1.10746094]
[1762733909275,0.20593633,105140.0,105130.0,1.34526094]
[1762733909579,0.00014277,105150.0,105140.0,0.5165637]
[1762733909783,0.00014277,105150.0,105140.0,0.98198184]
[1762733910778,0.00014277,105150.0,105140.0,0.96650981]
[1762733911074,0.00014277,105150.0,105140.0,1.20426981]
[1762733911277,0.00114277,105150.0,105140.0,1.56950981]
[1762733911475,0.00114277,105150.0,105140.0,1.80726981]
[1762733912368,1.06126496,105180.0,105170.0,0.5165365]
[1762733912578,1.06346299,105180.0,105170.0,0.52604814]
[1762733912969,0.89251803,105180.0,105170.0,0.52604814]
[1762733913168,0.40655,105170.0,105160.0,0.42143]
[1762733913375,0.40874803,105170.0,105160.0,0.52604814]
[1762733914865,0.41074803,105170.0,105160.0,0.52604814]
[1762733915070,0.41274803,105170.0,105160.0,0.52704814]
[1762733915482,0.00619803,105170.0,105160.0,1.08758188]
[1762733916280,0.004,105170.0,105160.0,1.08758188]
[1762733917575,0.20577,105170.0,105160.0,1.08758188]
[1762733917776,0.41274803,105170.0,105160.0,0.62216374]
[1762733917981,0.41274803,105170.0,105160.0,0.52704814]
[1762733918179,0.41274803,105170.0,105160.0,0.42243]
[1762733918382,0.41274803,105170.0,105160.0,0.52704814]
[1762733918683,0.53219964,105170.0,105160.0,0.52704814]
[1762733919185,0.12564964,105170.0,105160.0,0.72678188]
[1762733919380,0.12564964,105170.0,105160.0,0.88784814]
[1762733919683,0.53219964,105170.0,105160.0,0.62216374]
[1762733920078,0.53219964,105170.0,105160.0,0.72678188]
[1762733920285,0.53219964,105170.0,105160.0,1.08758188]
[1762733920487,0.53019964,105170.0,105160.0,1.08758188]
[1762733920675,0.40874803,105170.0,105160.0,1.08658188]
[1762733920875,0.41174803,105170.0,105160.0,1.08758188]
[1762733921678,0.40874803,105170.0,105160.0,1.08658188]
[1762733921883,0.00219803,105170.0,105160.0,1.08658188]
[1762733922179,0.76749277,105180.0,105170.0,0.6096566]
[1762733922384,0.4088908,105180.0,105170.0,0.71427474]
[1762733923780,0.4108908,105180.0,105170.0,0.71527474]
[1762733923976,0.4138908,105180.0,105170.0,0.71527474]
[1762733924688,0.4138908,105180.0,105170.0,1.07607474]
[1762733925575,0.49923119,105180.0,105170.0,1.07607474]
[1762733928381,0.4138908,105180.0,105170.0,1.07607474]
[1762733928983,0.00514277,105180.0,105170.0,1.06060506]
[1762733929184,0.11945161,105190.0,105180.0,0.5782375]
[1762733929390,0.11945161,105190.0,105180.0,1.04365564]
[1762733930183,0.12245161,105190.0,105180.0,1.04365564]
[1762733930389,0.12545161,105190.0,105180.0,1.04465564]
[1762733930997,0.12445161,105190.0,105180.0,1.04465564]
[1762733931797,0.02024893,105200.0,105190.0,0.5782286]
[1762733931986,0.02024893,105200.0,105190.0,1.1266106]
[1762733932191,0.10555158,105200.0,105190.0,1.02199246]
[1762733932498,0.10555158,105200.0,105190.0,1.3642506]
[1762733932701,2.77e-06,105200.0,105190.0,1.51737432]
[1762733932897,0.41919364,105210.0,105200.0,0.0950795]
[1762733933094,0.41919364,105210.0,105200.0,0.66511578]
[1762733933295,0.41919364,105210.0,105200.0,0.90275578]
[1762733933790,0.10976,105220.0,105210.0,0.0950704]
[1762733933992,0.29819,105220.0,105210.0,0.56048854]
[1762733934192,0.31305102,105220.0,105210.0,0.56048854]
[1762733934392,0.31524905,105220.0,105210.0,0.56048854]
[1762733934790,0.50879905,105220.0,105210.0,0.46541814]
[1762733935392,0.12462102,105220.0,105210.0,0.56048854]
[1762733935987,0.12462102,105220.0,105210.0,0.56148854]
[1762733936196,0.12462102,105220.0,105210.0,0.56248854]
[1762733936801,0.12462102,105220.0,105210.0,0.80008854]
[1762733937002,0.51336102,105220.0,105210.0,0.6954704]
[1762733937193,0.12462102,105220.0,105210.0,0.6954704]
[1762733937396,0.12462102,105220.0,105210.0,0.80008854]
[1762733937588,0.12462102,105220.0,105210.0,0.56248854]
[1762733938406,0.01486102,105220.0,105210.0,0.80008854]
[1762733938593,0.11426,105230.0,105210.0,0.56248854]
[1762733938902,0.87146803,105230.0,105210.0,0.6004]
[1762733939094,0.87146803,105230.0,105210.0,0.69547]
[1762733939293,0.87146803,105230.0,105210.0,0.45787]
[1762733939491,0.87146803,105230.0,105220.0,0.09152368]
[1762733939795,0.88595867,105230.0,105220.0,0.09152368]
[1762733940492,0.48955064,105230.0,105220.0,0.09152368]
[1762733940697,0.01899064,105230.0,105220.0,0.31366098]
[1762733941094,0.01899064,105230.0,105220.0,0.67446098]
[1762733941602,0.01899064,105230.0,105220.0,0.31366098]
[1762733941803,0.14276064,105230.0,105220.0,0.31366098]
[1762733942005,0.01999064,105230.0,105220.0,0.31366098]
[1762733942200,0.01999064,105230.0,105220.0,0.07606098]
[1762733942604,0.14176064,105230.0,105220.0,0.07706098]
[1762733943102,0.14176064,105230.0,105220.0,0.07806098]
[1762733943299,0.01899064,105230.0,105220.0,0.43786098]
[1762733943497,0.01899064,105230.0,105220.0,0.08006098]
[1762733943700,0.14176064,105230.0,105220.0,0.07906098]
[1762733944001,0.14176064,105230.0,105220.0,0.08106098]
[1762733944394,0.14176064,105230.0,105220.0,0.44186098]
[1762733944590,0.01899064,105230.0,105220.0,0.67946098]
[1762733945201,0.01899064,105230.0,105220.0,0.44186098]
[1762733945507,0.01899064,105230.0,105220.0,0.67946098]
[1762733945806,0.01899064,105230.0,105220.0,0.44186098]
[1762733946012,0.01899064,105230.0,105220.0,0.67946098]
[1762733947301,0.84999,105250.0,105220.0,0.67946098]
[1762733947501,0.85218803,105250.0,105230.0,0.3608]
[1762733947998,0.85218803,105250.0,105230.0,0.59836]
[1762733948194,0.01567504,105250.0,105230.0,0.59836]
[1762733948400,0.37647504,105250.0,105230.0,0.23756]
[1762733948802,0.37747504,105250.0,105230.0,0.23756]
[1762733949113,0.37747504,105250.0,105220.0,0.43700375]
[1762733949312,0.37747504,105250.0,105230.0,0.3608]
[1762733949611,0.37747504,105250.0,105240.0,0.0715758]
[1762733949812,0.01667504,105250.0,105240.0,0.3091358]
[1762733950422,0.37747504,105250.0,105240.0,0.3091358]
[1762733950709,0.37747504,105250.0,105240.0,0.3326032]
[1762733950919,0.12277,105240.0,105230.0,0.0990468]
[1762733951215,0.87997803,105240.0,105230.0,0.004]
[1762733951406,0.87997803,105240.0,105230.0,0.007]
[1762733952011,0.87997803,105240.0,105230.0,0.0980522]
[1762733952206,0.88097803,105240.0,105230.0,0.1020522]
[1762733952407,0.88097803,105240.0,105230.0,0.007]
[1762733952718,0.88097803,105240.0,105230.0,0.1070522]
[1762733953408,0.88097803,105240.0,105230.0,0.012]
[1762733955320,0.39421,105230.0,105220.0,0.00014277]
[1762733955510,0.75720803,105230.0,105220.0,0.00014277]
[1762733956714,0.75720803,105230.0,105220.0,0.09720397]
[1762733957111,0.55689803,105230.0,105220.0,0.33480397]
[1762733957409,0.36299803,105230.0,105220.0,0.33480397]
[1762733957808,0.55689803,105230.0,105220.0,0.33680397]
[1762733958208,0.00219803,105230.0,105220.0,0.09920397]
[1762733958403,0.00219803,105230.0,105220.0,0.33680397]
[1762733958815,0.19609803,105230.0,105220.0,0.33680397]
[1762733959018,0.75720803,105230.0,105220.0,0.33680397]
[1762733959220,0.75720803,105230.0,105220.0,0.09920407]
[1762733959817,0.75720803,105230.0,105220.0,0.00414277]
[1762733960018,0.75720803,105230.0,105220.0,0.09920407]
[1762733960323,0.87997803,105230.0,105220.0,0.09920407]
[1762733961014,0.51917803,105230.0,105220.0,0.33680407]
[1762733961218,0.51917803,105230.0,105220.0,0.09920407]
[1762733961407,0.87997803,105230.0,105220.0,0.09920407]
[1762733962519,0.87997803,105230.0,105220.0,0.00414277]
[1762733962719,0.87997803,105230.0,105220.0,0.09920397]
[1762733963516,0.51917803,105230.0,105220.0,0.33680397]
[1762733963708,0.51917803,105230.0,105220.0,0.09920397]
[1762733963905,0.12496803,105230.0,105220.0,0.33480397]
[1762733964127,0.48776803,105230.0,105220.0,0.09820397]
[1762733964421,0.88197803,105230.0,105220.0,0.09820397]
[1762733964615,0.95014917,105230.0,105220.0,0.09620397]
[1762733964808,0.94914917,105230.0,105220.0,0.09620397]
[1762733965211,0.94814917,105230.0,105220.0,0.00114277]
[1762733965423,0.94814917,105230.0,105220.0,0.09720397]
[1762733965913,0.20018114,105240.0,105230.0,0.0950522]
[1762733966119,0.20237917,105240.0,105230.0,0.6934122]
[1762733966417,0.64371917,105240.0,105230.0,0.6934122]
[1762733966719,0.64371917,105240.0,105230.0,0.4558522]
[1762733966906,0.64371917,105240.0,105230.0,0.6934122]
[1762733967109,0.64571917,105240.0,105230.0,0.4558522]
[1762733967710,0.64571917,105240.0,105230.0,0.6934122]
[1762733967911,0.42256441,105250.0,105240.0,0.0950431]
[1762733968117,0.35646504,105250.0,105240.0,0.4558431]
[1762733968316,0.35646504,105250.0,105240.0,0.6934031]
[1762733968515,0.13624701,105250.0,105240.0,0.8408031]
[1762733968815,0.35646504,105250.0,105240.0,0.8408031]
[1762733969212,0.35646504,105250.0,105240.0,0.6032431]
[1762733969411,0.01347701,105250.0,105240.0,0.8428031]
[1762733969610,0.34529,105260.0,105250.0,0.0950342]
[1762733969818,0.56861,105260.0,105250.0,0.4558342]
[1762733970024,0.56861,105260.0,105250.0,0.6933542]
[1762733970324,0.57080803,105260.0,105250.0,0.3608]
[1762733970513,0.57080803,105260.0,105250.0,0.3325542]
[1762733970715,0.57080803,105260.0,105250.0,0.0950342]
[1762733970915,0.57080803,105260.0,105250.0,0.3345542]
[1762733971119,0.57080803,105260.0,105250.0,0.0980342]
[1762733972220,0.58456166,105260.0,105250.0,0.4588341]
[1762733972421,0.58456166,105260.0,105250.0,0.6963541]
[1762733972825,0.58456166,105260.0,105250.0,0.4588341]
[1762733973220,0.14102363,105260.0,105250.0,0.4588341]
[1762733973427,0.14102363,105260.0,105250.0,0.6963541]
[1762733974322,0.14102363,105260.0,105250.0,0.4588341]
[1762733974528,0.01825363,105260.0,105250.0,0.6963541]
[1762733974819,0.0045,105260.0,105250.0,0.4588341]
[1762733975026,0.0045,105260.0,105250.0,0.8544541]
[1762733975629,0.0045,105260.0,105250.0,1.0018541]
[1762733975828,0.0045,105260.0,105250.0,1.4596441]
[1762733976028,0.0045,105260.0,105250.0,1.82950049]
[1762733976229,0.0045,105260.0,105250.0,1.3669005]
[1762733976729,0.24202,105260.0,105250.0,1.1293805]
[1762733976930,0.0045,105260.0,105250.0,1.3669005]
[1762733977116,0.24202,105260.0,105250.0,1.1273805]
[1762733977322,0.59137042,105290.0,105260.0,0.253124]
[1762733977523,0.51302845,105290.0,105270.0,0.253115]
[1762733978022,0.37882042,105290.0,105270.0,0.490595]
[1762733978220,0.57335,105280.0,105270.0,0.253115]
[1762733978428,0.93634803,105280.0,105270.0,0.253115]
[1762733978626,0.44134,105270.0,105260.0,0.09516357]
[1762733978929,0.80433803,105270.0,105260.0,0.09516357]
[1762733979125,0.80433803,105270.0,105260.0,0.45596357]
[1762733979126,0.18137995,105270.0,105260.0,0.45596357]
[1762733979530,0.82316042,105290.0,105260.0,0.85154357]
[1762733979738,0.13201,105280.0,105270.0,0.4558161]
[1762733980031,0.23923845,105290.0,105270.0,0.4558161]
[1762733980239,0.18137995,105280.0,105270.0,0.6139161]
[1762733980429,0.00669803,105290.0,105280.0,0.0950071]
[1762733980623,0.0045,105290.0,105280.0,0.0950071]
[1762733980827,0.0045,105290.0,105280.0,0.9987471]
[1762733981232,0.14541512,105300.0,105290.0,0.236898]
[1762733981432,0.14541512,105300.0,105290.0,0.716838]
[1762733982037,0.01340512,105300.0,105290.0,0.716838]
[1762733982239,0.93415,105310.0,105290.0,0.716838]
[1762733982439,0.002,105300.0,105290.0,0.479398]
[1762733982629,0.18337995,105300.0,105290.0,0.479398]
[1762733982834,0.31538995,105300.0,105290.0,0.479398]
[1762733983235,0.31538995,105300.0,105290.0,0.483398]
[1762733983539,0.13401,105300.0,105290.0,0.720838]
[1762733983739,0.13201,105300.0,105290.0,0.720838]
[1762733983939,0.13201,105300.0,105290.0,0.723838]
[1762733984346,0.14555046,105300.0,105290.0,0.723838]
[1762733984538,0.32693041,105300.0,105290.0,0.486398]
[1762733984940,0.14555046,105300.0,105290.0,0.723838]
[1762733985641,0.01454046,105300.0,105290.0,1.085638]
[1762733986041,0.001,105300.0,105290.0,0.943738]
[1762733986240,0.001,105300.0,105290.0,0.701238]
[1762733986434,0.001,105300.0,105290.0,0.859338]
[1762733986834,0.001,105300.0,105290.0,0.621898]
[1762733986835,0.18237995,105300.0,105290.0,0.621898]
[1762733987130,0.006,105300.0,105290.0,1.459338]
[1762733987939,0.69577803,105300.0,105290.0,0.463798]
[1762733988243,0.87715798,105300.0,105290.0,0.463798]
[1762733988436,0.69577803,105300.0,105290.0,0.463798]
[1762733989041,0.87715798,105300.0,105290.0,0.463798]
[1762733989239,0.69577803,105300.0,105290.0,0.463798]
[1762733989537,0.69358,105300.0,105290.0,0.463798]
[1762733989744,0.006,105300.0,105290.0,0.701238]
[1762733990042,0.006,105300.0,105290.0,0.80654799]
[1762733990243,0.006,105300.0,105290.0,1.56434799]
[1762733990931,0.0045,105320.0,105310.0,0.34311241]
[1762733991131,0.0045,105320.0,105310.0,0.94131241]
[1762733991743,0.18587995,105320.0,105310.0,0.70391241]
[1762733991944,0.0045,105320.0,105310.0,0.94131241]
[1762733992129,0.0045,105320.0,105310.0,0.70491241]
[1762733992130,0.18587995,105320.0,105310.0,0.70491241]
[1762733992946,0.0055,105320.0,105310.0,0.94831241]
[1762733993431,0.0055,105320.0,105310.0,0.9572901]
[1762733993635,0.18687995,105320.0,105310.0,0.7198901]
[1762733994044,0.0055,105320.0,105310.0,0.9572901]
[1762733994248,0.0055,105320.0,105310.0,1.3180901]
[1762733994438,0.0055,105320.0,105310.0,1.32809009]
[1762733994838,0.0055,105320.0,105310.0,1.92809009]
[1762733995039,0.18687995,105320.0,105310.0,2.08059009]
[1762733995347,0.18687995,105320.0,105310.0,1.62268009]
[1762733995348,0.0055,105320.0,105310.0,1.62268009]
[1762733995538,0.18687995,105320.0,105310.0,1.3752801]
[1762733995939,0.0055,105320.0,105310.0,1.6126801]
[1762733996139,0.0055,105320.0,105310.0,1.3752801]
[1762733996140,0.18687995,105320.0,105310.0,1.3752801]
[1762733996447,0.0105,105320.0,105310.0,1.6126801]
[1762733996650,0.19187995,105320.0,105310.0,1.3752801]
[1762733997039,0.0045,105350.0,105330.0,0.2527621]
[1762733997341,0.36749803,105350.0,105330.0,0.40030487]
[1762733997535,0.3608,105340.0,105330.0,0.63762487]
[1762733997736,0.52491,105340.0,105330.0,0.40030487]
[1762733997940,0.52710803,105340.0,105330.0,0.63762487]
[1762733998148,0.84598254,105340.0,105330.0,0.40130487]
[1762733998345,1.36286254,105340.0,105330.0,0.40130487]
[1762733998940,1.04498803,105340.0,105330.0,0.25790487]
[1762733999142,1.36386254,105340.0,105330.0,0.10010487]
[1762733999350,1.04498803,105340.0,105330.0,0.10010487]
[1762733999548,1.36386254,105340.0,105330.0,0.10010487]
[1762733999747,1.36386254,105340.0,105330.0,0.10210487]
[1762733999947,1.04498803,105340.0,105330.0,0.10210487]
[1762734000150,0.68067451,105340.0,105330.0,0.25990487]
[1762734000442,2.44854253,105340.0,105330.0,0.00210805]
[1762734000642,0.51688,105330.0,105320.0,0.094971]
[1762734000953,0.68099,105320.0,105310.0,0.0949761]
[1762734001143,1.10389254,105320.0,105310.0,0.0949802]
[1762734001340,0.67967451,105320.0,105310.0,0.2527802]
[1762734001554,0.36094277,105330.0,105320.0,0.0949711]
[1762734001761,0.3631408,105330.0,105320.0,0.0949711]
[1762734002053,0.3631408,105330.0,105320.0,0.0959711]
[1762734002351,0.67981728,105330.0,105320.0,0.0959711]
[1762734002854,0.68201531,105330.0,105320.0,0.0959711]
[1762734003052,0.0045,105350.0,105320.0,1.3098811]
[1762734003253,0.1,105370.0,105340.0,0.97471]
[1762734003557,0.10219803,105370.0,105360.0,0.190245]
[1762734004057,0.57468,105370.0,105360.0,0.190245]
[1762734004553,0.1,105370.0,105360.0,0.551045]
[1762734004950,0.1,105370.0,105360.0,0.455735]
[1762734005149,0.57668,105370.0,105360.0,0.455735]
[1762734005457,0.102,105370.0,105360.0,0.455735]
[1762734005653,0.57468,105370.0,105360.0,0.456735]
[1762734005958,0.1,105370.0,105360.0,0.456735]
[1762734006157,0.57468,105370.0,105360.0,0.456735]
[1762734006454,0.1,105370.0,105360.0,0.456735]
[1762734006649,0.57468,105370.0,105360.0,0.456735]
[1762734006845,0.1,105370.0,105360.0,0.456735]
[1762734007051,0.57468,105370.0,105360.0,0.456735]
[1762734007351,0.1,105370.0,105360.0,0.456735]
[1762734007551,0.57687803,105370.0,105360.0,0.456735]
[1762734007845,0.10219803,105370.0,105360.0,0.456735]
[1762734008052,0.57687803,105370.0,105360.0,0.60940505]
[1762734008352,0.10219803,105370.0,105360.0,0.75680505]
[1762734008655,0.57468,105370.0,105360.0,0.75680505]
[1762734008856,0.1,105370.0,105360.0,0.81229246]
[1762734009057,0.57468,105370.0,105360.0,0.81229246]
[1762734009256,0.105,105370.0,105360.0,0.66489246]
[1762734009951,0.0045,105380.0,105370.0,0.47761862]
[1762734010154,1e-07,105380.0,105370.0,0.80933608]
[1762734010345,1e-07,105380.0,105370.0,1.47449735]
[1762734010549,0.4746801,105380.0,105370.0,1.23725735]
[1762734010749,0.3653,105410.0,105380.0,0.5848626]
[1762734011056,0.26460803,105410.0,105390.0,0.3608]
[1762734011353,0.02349,105400.0,105390.0,0.692908]
[1762734011546,0.2372,105400.0,105390.0,0.455708]
[1762734011942,0.00969803,105410.0,105390.0,0.692908]
[1762734012156,0.00969803,105410.0,105400.0,0.41633876]
[1762734012552,0.00969803,105410.0,105400.0,0.05553876]
[1762734012754,0.26760803,105410.0,105400.0,0.05553876]
[1762734012958,0.29009803,105410.0,105390.0,0.598]
[1762734013166,0.2372,105400.0,105390.0,0.455708]
[1762734013451,0.00869803,105410.0,105400.0,0.094899]
[1762734013452,0.0045,105410.0,105400.0,0.094899]
[1762734013657,0.0045,105410.0,105400.0,0.455699]
[1762734014157,0.0045,105410.0,105400.0,0.692899]
[1762734014456,0.0055,105410.0,105400.0,0.332099]
[1762734014659,0.2427,105410.0,105400.0,0.455699]
[1762734015458,0.0105,105410.0,105400.0,0.692899]
[1762734016056,0.3608,105430.0,105400.0,0.787798]
[1762734016258,0.3608,105430.0,105410.0,0.48985]
[1762734016453,0.3608,105430.0,105410.0,0.51485]
[1762734016856,0.36299803,105430.0,105410.0,0.87565]
[1762734017152,0.3648,105430.0,105410.0,0.85065]
[1762734017454,0.004,105430.0,105410.0,0.87565]
[1762734017663,0.001,105430.0,105420.0,0.455681]
[1762734018050,0.001,105430.0,105420.0,0.692801]
[1762734018260,0.0045,105440.0,105430.0,0.094872]
[1762734018953,0.53160803,105440.0,105420.0,0.59892]
[1762734019148,1.37553,105430.0,105420.0,0.0958811]
[1762734019347,0.90336803,105430.0,105420.0,0.0958811]
[1762734019553,1.37772803,105430.0,105420.0,0.006]
[1762734019757,1.37772803,105430.0,105420.0,0.1008811]
[1762734020060,0.38429,105430.0,105420.0,0.1008811]
[1762734020262,0.38648803,105430.0,105420.0,0.1008811]
[1762734020451,0.38648803,105430.0,105420.0,0.0998811]
[1762734021056,0.38648803,105430.0,105420.0,0.1008811]
[1762734021562,0.39148803,105430.0,105420.0,0.1008811]
[1762734021752,0.50504803,105430.0,105420.0,0.1008811]
[1762734021949,0.005,105430.0,105420.0,0.1008811]
[1762734022153,0.0045,105440.0,105430.0,0.0948722]
[1762734022460,0.02799,105440.0,105430.0,0.3319922]
[1762734022757,0.19429803,105440.0,105430.0,0.3319922]
[1762734023152,0.02799,105440.0,105430.0,0.4556722]
[1762734023352,0.0045,105440.0,105430.0,0.6957922]
[1762734024063,0.19429803,105440.0,105430.0,0.0978722]
[1762734024258,0.71117803,105440.0,105430.0,0.0978722]
[1762734024562,0.1921,105440.0,105430.0,0.3349922]
[1762734024753,0.1921,105440.0,105430.0,0.0978722]
[1762734024948,1.07197803,105440.0,105430.0,0.3349922]
[1762734025260,1.07197803,105440.0,105430.0,0.003]
[1762734025454,1.54621803,105440.0,105430.0,0.0978721]
[1762734025655,1.54621803,105440.0,105430.0,0.003]
[1762734026450,1.07197803,105440.0,105430.0,0.0978721]
[1762734026661,0.19429803,105440.0,105430.0,0.3349921]
[1762734027062,0.02799,105440.0,105430.0,0.3349921]
[1762734027263,0.0045,105440.0,105430.0,0.3349921]
[1762734027656,0.0095,105440.0,105430.0,0.0978721]
[1762734027855,0.0095,105440.0,105430.0,0.3349921]
[1762734028158,0.71378803,105440.0,105430.0,0.3349921]
[1762734028461,0.53444,105430.0,105420.0,0.0948754]
[1762734028760,0.0095,105440.0,105430.0,0.0948721]
[1762734028964,0.0095,105440.0,105430.0,0.6927921]
[1762734029160,0.0095,105440.0,105430.0,1.2927921]
[1762734029367,0.0095,105440.0,105430.0,1.42862121]
[1762734029659,0.0095,105440.0,105430.0,1.49574121]
[1762734029958,0.0095,105440.0,105430.0,1.85105121]
[1762734030160,0.06863288,105440.0,105430.0,1.35393121]
[1762734030359,0.0045,105470.0,105450.0,0.1901636]
[1762734030556,0.36749803,105470.0,105460.0,0.1901551]
[1762734030756,0.3608,105490.0,105470.0,0.0948361]
[1762734030955,0.3608,105480.0,105470.0,0.09497887]
[1762734031464,0.3653,105500.0,105470.0,0.78812887]
[1762734031660,0.42493188,105480.0,105470.0,0.55108887]
[1762734031864,0.80583,105500.0,105490.0,0.0948182]
[1762734032071,1.45387803,105500.0,105490.0,0.0948182]
[1762734032258,1.43038803,105500.0,105490.0,0.0948182]
[1762734032453,1.00117803,105500.0,105490.0,0.0948182]
[1762734032659,1.59375991,105500.0,105490.0,0.0948182]
[1762734032860,1.19231803,105500.0,105480.0,0.0948222]
[1762734033058,0.16765,105480.0,105470.0,1.59497247]
[1762734033268,1.08857803,105480.0,105470.0,0.00014277]
[1762734033767,1.51350991,105480.0,105470.0,0.00014277]
[1762734033967,1.51350991,105480.0,105470.0,0.09497887]
[1762734033968,1.08857803,105480.0,105470.0,0.09497887]
[1762734034263,1.08857803,105480.0,105470.0,0.09797887]
[1762734034264,1.51350991,105480.0,105470.0,0.09797887]
[1762734034466,1.08857803,105480.0,105470.0,0.08564345]
[1762734034763,0.005,105480.0,105470.0,0.54175345]
[1762734035070,0.80583,105500.0,105480.0,0.3318271]
[1762734035254,0.80802803,105500.0,105490.0,0.0948181]
[1762734035456,0.44722803,105500.0,105490.0,0.3318181]
[1762734035652,0.0045,105500.0,105490.0,0.6926181]
[1762734036560,0.0045,105500.0,105490.0,0.4586181]
[1762734036876,0.0045,105500.0,105490.0,0.6965781]
[1762734037065,0.0045,105500.0,105490.0,0.4596181]
[1762734037278,0.17215,105500.0,105490.0,0.0988181]
[1762734037462,0.17215,105500.0,105490.0,0.3357781]
[1762734037661,1.09307803,105500.0,105490.0,0.24096]
[1762734037862,1.09307803,105500.0,105490.0,0.0988181]
[1762734038159,1.09307803,105500.0,105490.0,0.004]
[1762734038670,1.09307803,105500.0,105490.0,0.0988182]